{"text_format":"1","workbook":"xlsx","n_sheets":1,"sheets":["cal"],"not_rendered":{"charts":0,"images":1,"macros":1,"external_links":0,"defined_names":1,"comments":0,"pivot_tables":0},"unopened":[],"bounds":{"document_bytes":16777216,"sheet_cells":100000,"rows_first":2000,"rows_last":500,"rows_between":2000,"halvings":0,"cell_chars":16384,"cell_head_chars":4096},"cells_cut":0,"cells_raw":0,"read":"whole","date_system":"1900"}

{"sheet":"cal","index":0,"n_rows":43,"n_cols":63,"rows_kept":43,"cut":false,"hidden":false,"merged":[[1,0,1,24],[3,1,3,7],[3,9,3,15],[3,17,3,23],[3,27,3,31],[3,32,3,36],[3,37,3,41],[3,42,3,46],[3,47,3,51],[3,56,3,61],[4,57,4,62],[5,57,5,62],[6,57,6,62],[7,57,7,62],[8,57,8,62],[9,57,9,62],[10,57,10,62],[11,57,11,62],[12,1,12,7],[12,9,12,15],[12,17,12,23],[12,57,12,62],[13,57,13,62],[14,57,14,62],[15,57,15,62],[16,57,16,62],[17,57,17,62],[18,57,18,62],[19,57,19,62],[20,57,20,62],[21,1,21,7],[21,9,21,15],[21,17,21,23],[21,57,21,62],[22,57,22,62],[23,57,23,62],[24,57,24,62],[25,57,25,62],[26,57,26,62],[27,57,27,62],[28,57,28,62],[29,57,29,62],[30,1,30,7],[30,9,30,15],[30,17,30,23],[30,57,30,62],[31,57,31,62],[32,57,32,62],[39,17,39,22]]}
[]
["開 館 カ レ ン ダ ー",null,null,null,null,null,null,null,null,null,null,null,null,null,null,null,null,null,null,null,null,null,null,null,null,null,null,null,null,null,null,null,null,null,null,null,null,null,null,null,{"$f":"AP2-2018","v":5},2023,4]
[null,null,null,null,null,null,null,null,null,null,null,null,null,null,null,null,null,null,null,null,null,null,null,"休館日",null,null,null,null,null,null,null,null,null,null,null,null,null,null,null,null,null,null,null,null,null,null,null,null,null,null,null,null,null,null,null,null,null,null,null,null,null,null,11]
[{"$f":"AQ2","v":4},{"$f":"\"令和\"&VLOOKUP(A4,$AR$25:$AS$36,2,FALSE)&\"年\"&A4&\"月\"","v":"令和5年4月"},null,null,null,null,null,null,{"$f":"IF(A4=12,1,A4+1)","v":5},{"$f":"\"令和\"&VLOOKUP(I4,$AR$25:$AS$36,2,FALSE)&\"年\"&I4&\"月\"","v":"令和5年5月"},null,null,null,null,null,null,{"$f":"IF(I4=12,1,I4+1)","v":6},{"$f":"\"令和\"&VLOOKUP(Q4,$AR$25:$AS$36,2,FALSE)&\"年\"&Q4&\"月\"","v":"令和5年6月"},null,null,null,null,null,null,null,null,null,"固定休日",null,null,null,null,"Happy-Monday",null,null,null,null,"周期による休日",null,null,null,null,"振替休日",null,null,null,null,"固定休館日",null,null,null,null,null,null,null,null,"公民館番号"]
[null,"日","月","火","水","木","金","土",null,"日","月","火","水","木","金","土",null,"日","月","火","水","木","金","土",null,null,null,"年","月","日","曜","名称","年","月","日","曜","名称","年","月","日","曜","名称","年","月","日","曜","名称","年","月","日","曜","名称",null,null,null,null,1,"ライフパーク倉敷"]
[null,null,null,null,null,null,null,1,null,null,1,2,3,4,5,6,null,null,null,null,null,1,2,3,null,null,null,{"$f":"IF($AQ$2>AC6,$AP$2+1,$AP$2)","v":2023},4,29,{"$f":"IF(AD6<>\"\",VLOOKUP(WEEKDAY(AB6&\"/\"&AC6&\"/\"&AD6),$AR$37:$AS$43,2,FALSE),\"\")","v":"土"},"昭和の日",{"$f":"IF(AH6<>\"\",IF($AQ$2>AH6,$AP$2+1,$AP$2),\"\")","v":2024},1,9,{"$f":"IF(AI6<>\"\",VLOOKUP(WEEKDAY(AG6&\"/\"&AH6&\"/\"&AI6),$AR$37:$AS$43,2,FALSE),\"\")","v":"火"},"成人の日",{"$f":"IF(AM6<>\"\",IF($AQ$2>AM6,$AP$2+1,$AP$2),\"\")","v":2024},3,20,{"$f":"IF(AN6<>\"\",VLOOKUP(WEEKDAY(AL6&\"/\"&AM6&\"/\"&AN6),$AR$37:$AS$43,2,FALSE),\"\")","v":"水"},"春分の日",2021,2,12,{"$f":"IF(AS6<>\"\",VLOOKUP(WEEKDAY(AQ6&\"/\"&AR6&\"/\"&AS6),$AR$37:$AS$43,2,FALSE),\"\")","v":"金"},"振替休日",{"$f":"IF($AQ$2>AW6,$AP$2+1,$AP$2)","v":2024},1,1,{"$f":"IF(AX6<>\"\",VLOOKUP(WEEKDAY(AV6&\"/\"&AW6&\"/\"&AX6),$AR$37:$AS$43,2,FALSE),\"\")","v":"月"},"年末年始",null,{"$f":"IF(AG6=\"\",\"\",AG6&\"/\"&AH6&\"/\"&AI6)","v":"2024/1/9"},null,null,2,"倉敷公民館"]
[null,2,3,4,5,6,7,8,null,7,8,9,10,11,12,13,null,4,5,6,7,8,9,10,null,null,null,2023,5,3,"水","憲法記念日",2023,7,17,"月","海の日",2023,9,{"$f":"INT(23.2488+0.242194*(AL7-1980))-INT((AL7-1980)/4)","v":23},"土","秋分の日",{"$f":"IF(AR7<>\"\",IF($AQ$2>AR7,$AP$2+1,$AP$2),\"\")","v":""},null,null,"",null,2024,1,2,"火","年末年始",null,"2023/7/17",null,null,3,"水島公民館"]
[null,9,10,11,12,13,14,15,null,14,15,16,17,18,19,20,null,11,12,13,14,15,16,17,null,null,null,2023,5,4,"木","みどりの日",2023,9,19,"火","敬老の日","",null,null,"",null,"",null,null,"",null,2024,1,3,"水","年末年始",null,"2023/9/19",null,null,4,"児島公民館"]
[null,16,17,18,19,20,21,22,null,21,22,23,24,25,26,27,null,18,19,20,21,22,23,24,null,null,null,2023,5,5,"金","子どもの日",2023,10,10,"火","スポ－ツの日","",null,null,"",null,"",null,null,"",null,2024,1,4,"木","年末年始",null,"2023/10/10",null,null,5,"玉島公民館"]
[null,23,24,25,26,27,28,29,null,28,29,30,31,null,null,null,null,25,26,27,28,29,30,null,null,null,null,2023,8,11,"金","山の日","",null,null,"",null,"",null,null,"",null,"",null,null,"",null,2023,12,28,"木","年末年始",null,"",null,null,6,"倉敷東公民館"]
[null,30,null,null,null,null,null,null,null,null,null,null,null,null,null,null,null,null,null,null,null,null,null,null,null,null,null,2023,11,3,"金","文化の日","",null,null,"",null,"",null,null,"",null,"",null,null,"",null,2023,12,29,"金","年末年始",null,"",null,null,7,"倉敷西公民館"]
[null,null,null,null,null,null,null,null,null,null,null,null,null,null,null,null,null,null,null,null,null,null,null,null,null,null,null,2023,11,23,"木","勤労感謝の日","",null,null,"",null,"",null,null,"",null,"",null,null,"",null,2023,12,30,"土","年末年始",null,"",null,null,8,"倉敷南公民館"]
[{"$f":"IF(Q4=12,1,Q4+1)","v":7},{"$f":"\"令和\"&VLOOKUP(A13,$AR$25:$AS$36,2,FALSE)&\"年\"&A13&\"月\"","v":"令和5年7月"},null,null,null,null,null,null,{"$f":"IF(A13=12,1,A13+1)","v":8},{"$f":"\"令和\"&VLOOKUP(I13,$AR$25:$AS$36,2,FALSE)&\"年\"&I13&\"月\"","v":"令和5年8月"},null,null,null,null,null,null,{"$f":"IF(I13=12,1,I13+1)","v":9},{"$f":"\"令和\"&VLOOKUP(Q13,$AR$25:$AS$36,2,FALSE)&\"年\"&Q13&\"月\"","v":"令和5年9月"},null,null,null,null,null,null,null,null,null,2024,1,1,"月","元旦","",null,null,"",null,"",null,null,"",null,"",null,null,"",null,2023,12,31,"日","年末年始",null,"",null,null,9,"倉敷北公民館"]
[null,"日","月","火","水","木","金","土",null,"日","月","火","水","木","金","土",null,"日","月","火","水","木","金","土",null,null,null,2024,2,11,"日","建国記念日","",null,null,"",null,"",null,null,"",null,"",null,null,"",null,{"$f":"IF(AW14<>\"\",IF($AQ$2>AW14,$AP$2+1,$AP$2),\"\")","v":""},null,null,"",null,null,"",null,null,10,"多津美公民館"]
[null,null,null,null,null,null,null,1,null,null,null,1,2,3,4,5,null,null,null,null,null,null,1,2,null,null,null,2024,2,23,"金","天皇誕生日","",null,null,"",null,"",null,null,"",null,"",null,null,"",null,"",null,null,"",null,null,"",null,null,11,"新田公民館"]
[null,2,3,4,5,6,7,8,null,6,7,8,9,10,11,12,null,3,4,5,6,7,8,9,null,null,null,null,null,null,null,null,"",null,null,"",null,"",null,null,"",null,"",null,null,"",null,"",null,null,"",null,null,"",null,null,12,"庄公民館"]
[null,9,10,11,12,13,14,15,null,13,14,15,16,17,18,19,null,10,11,12,13,14,15,16,null,null,null,null,null,null,null,null,"",null,null,"",null,"",null,null,"",null,"",null,null,"",null,"",null,null,"",null,null,"",null,null,13,"茶屋町公民館"]
[null,16,17,18,19,20,21,22,null,20,21,22,23,24,25,26,null,17,18,19,20,21,22,23,null,null,null,null,null,null,null,null,"",null,null,"",null,"",null,null,"",null,"",null,null,"",null,"",null,null,"",null,null,"",null,null,14,"西阿知公民館"]
[null,23,24,25,26,27,28,29,null,27,28,29,30,31,null,null,null,24,25,26,27,28,29,30,null,null,null,null,null,null,null,null,"",null,null,"",null,"",null,null,"",null,"",null,null,"",null,"",null,null,"",null,null,"",null,null,15,"福田公民館"]
[null,30,31,null,null,null,null,null,null,null,null,null,null,null,null,null,null,null,null,null,null,null,null,null,null,null,null,null,null,null,null,null,"",null,null,"",null,"",null,null,"",null,"",null,null,"",null,"",null,null,"",null,null,"",null,null,16,"福田南公民館"]
[null,null,null,null,null,null,null,null,null,null,null,null,null,null,null,null,null,null,null,null,null,null,null,null,null,null,null,null,null,null,null,null,"",null,null,"",null,"",null,null,"",null,"",null,null,"",null,"",null,null,"",null,null,"",null,null,17,"連島公民館"]
[{"$f":"IF(Q13=12,1,Q13+1)","v":10},{"$f":"\"令和\"&VLOOKUP(A22,$AR$25:$AS$36,2,FALSE)&\"年\"&A22&\"月\"","v":"令和5年10月"},null,null,null,null,null,null,{"$f":"IF(A22=12,1,A22+1)","v":11},{"$f":"\"令和\"&VLOOKUP(I22,$AR$25:$AS$36,2,FALSE)&\"年\"&I22&\"月\"","v":"令和5年11月"},null,null,null,null,null,null,{"$f":"IF(I22=12,1,I22+1)","v":12},{"$f":"\"令和\"&VLOOKUP(Q22,$AR$25:$AS$36,2,FALSE)&\"年\"&Q22&\"月\"","v":"令和5年12月"},null,null,null,null,null,null,null,null,null,null,null,null,null,null,"",null,null,"",null,"",null,null,"",null,"",null,null,"",null,"",null,null,"",null,null,"",null,null,18,"連島南公民館"]
[null,"日","月","火","水","木","金","土",null,"日","月","火","水","木","金","土",null,"日","月","火","水","木","金","土",null,null,null,null,null,null,null,null,"",null,null,"",null,"",null,null,"",null,"",null,null,"",null,"",null,null,"",null,null,"",null,null,19,"下津井公民館"]
[null,1,2,3,4,5,6,7,null,null,null,null,1,2,3,4,null,null,null,null,null,null,1,2,null,null,null,null,null,null,null,null,null,null,null,null,null,null,null,null,null,null,null,null,null,null,null,null,null,null,null,null,null,null,null,null,20,"本荘公民館"]
[null,8,9,10,11,12,13,14,null,5,6,7,8,9,10,11,null,3,4,5,6,7,8,9,null,null,null,null,null,null,null,null,null,null,null,null,null,{"$f":"IF(AM25<>\"\",VLOOKUP(AM25,$AR$25:$AT$36,2,FALSE),\"\")","v":5},{"$f":"AQ2","v":4},{"$f":"IF(AM25<>\"\",VLOOKUP(AM25,$AR$25:$AT$36,3,FALSE),\"\")","v":30},5,2,null,1,{"$f":"IF(AR25<$AQ$2,$AO$2+1,$AO$2)","v":6},31,null,null,null,null,null,null,null,null,null,null,21,"琴浦公民館"]
[null,15,16,17,18,19,20,21,null,12,13,14,15,16,17,18,null,10,11,12,13,14,15,16,null,null,null,null,null,null,null,null,null,null,null,null,null,5,{"$f":"IF(AM25=12,1,AM25+1)","v":5},31,5,10,null,2,6,29,null,null,null,null,null,null,null,null,null,null,22,"唐琴公民館"]
[null,22,23,24,25,26,27,28,null,19,20,21,22,23,24,25,null,17,18,19,20,21,22,23,null,null,null,null,null,null,null,null,null,null,null,null,null,5,6,30,5,18,null,3,6,31,null,null,null,null,null,null,null,null,null,null,23,"郷内公民館"]
[null,29,30,31,null,null,null,null,null,26,27,28,29,30,null,null,null,24,25,26,27,28,29,30,null,null,null,null,null,null,null,null,null,null,null,null,null,5,7,31,14,2,null,4,5,30,null,null,null,null,null,null,null,null,null,null,24,"玉島東公民館"]
[null,null,null,null,null,null,null,null,null,null,null,null,null,null,null,null,null,31,null,null,null,null,null,null,null,null,null,null,null,null,null,null,null,null,null,null,null,5,8,31,14,10,null,5,5,31,null,null,null,null,null,null,null,null,null,null,25,"玉島西公民館"]
[null,null,null,null,null,null,null,null,null,null,null,null,null,null,null,null,null,null,null,null,null,null,null,null,null,null,null,null,null,null,null,null,null,null,null,null,null,5,9,30,14,18,null,6,5,30,null,null,null,null,null,null,null,null,null,null,26,"玉島北公民館"]
[{"$f":"IF(Q22=12,1,Q22+1)","v":1},{"$f":"\"令和\"&VLOOKUP(A31,$AR$25:$AS$36,2,FALSE)&\"年\"&A31&\"月\"","v":"令和6年1月"},null,null,null,null,null,null,{"$f":"IF(A31=12,1,A31+1)","v":2},{"$f":"\"令和\"&VLOOKUP(I31,$AR$25:$AS$36,2,FALSE)&\"年\"&I31&\"月\"","v":"令和6年2月"},null,null,null,null,null,null,{"$f":"IF(I31=12,1,I31+1)","v":3},{"$f":"\"令和\"&VLOOKUP(Q31,$AR$25:$AS$36,2,FALSE)&\"年\"&Q31&\"月\"","v":"令和6年3月"},null,null,null,null,null,null,null,null,null,null,null,null,null,null,null,null,null,null,null,5,10,31,23,2,null,7,5,31,null,null,null,null,null,null,null,null,null,null,27,"玉島黒崎公民館"]
[null,"日","月","火","水","木","金","土",null,"日","月","火","水","木","金","土",null,"日","月","火","水","木","金","土",null,null,null,null,null,null,null,null,null,null,null,null,null,5,11,30,23,10,null,8,5,31,null,null,null,null,null,null,null,null,null,null,28,"船穂公民館"]
[null,null,1,2,3,4,5,6,null,null,null,null,null,1,2,3,null,null,null,null,null,null,1,2,null,null,null,null,null,null,null,null,null,null,null,null,null,5,12,31,23,18,null,9,5,30,null,null,null,null,null,null,null,null,null,null,29,"真備公民館"]
[null,7,8,9,10,11,12,13,null,4,5,6,7,8,9,10,null,3,4,5,6,7,8,9,null,null,null,null,null,null,null,null,null,null,null,null,null,6,1,31,32,2,null,10,5,31]
[null,14,15,16,17,18,19,20,null,11,12,13,14,15,16,17,null,10,11,12,13,14,15,16,null,null,null,null,null,null,null,null,null,null,null,null,null,6,2,29,32,10,null,11,5,30]
[null,21,22,23,24,25,26,27,null,18,19,20,21,22,23,24,null,17,18,19,20,21,22,23,null,null,null,null,null,null,null,null,null,null,null,null,null,6,3,31,32,18,null,12,5,31]
[null,28,29,30,31,null,null,null,null,25,26,27,28,29,null,null,null,24,25,26,27,28,29,30,null,null,null,null,null,null,null,null,null,null,null,null,null,null,null,null,null,null,null,1,"日"]
[null,null,null,null,null,null,null,null,null,null,null,null,null,null,null,null,null,31,null,null,null,null,null,null,null,null,null,null,null,null,null,null,null,null,null,null,null,null,null,null,null,null,null,2,"月"]
[null,null,null,null,null,null,null,null,null,null,null,null,null,null,null,null,null,null,null,null,null,null,null,null,null,null,null,null,null,null,null,null,null,null,null,null,null,null,null,null,null,null,null,3,"火"]
[null,{"$f":"IF(BK3<>\"\",VLOOKUP(BK3,$BE$5:$BK$33,2,FALSE),\"\")","v":"新田公民館"},null,null,null,null,null,null,null,null,null,null,null,null,null,null,null,{"$f":"TODAY()","v":"2023-02-10"},null,null,null,null,null,"更新",null,null,null,null,null,null,null,null,null,null,null,null,null,null,null,null,null,null,null,4,"水"]
[null,null,null,null,null,null,null,null,null,null,null,null,null,null,null,null,null,null,null,null,null,null,null,null,null,null,null,null,null,null,null,null,null,null,null,null,null,null,null,null,null,null,null,5,"木"]
[null,null,null,null,null,null,null,null,null,null,null,null,null,null,null,null,null,null,null,null,null,null,null,null,null,null,null,null,null,null,null,null,null,null,null,null,null,null,null,null,null,null,null,6,"金"]
[null,null,null,null,null,null,null,null,null,null,null,null,null,null,null,null,null,null,null,null,null,null,null,null,null,null,null,null,null,null,null,null,null,null,null,null,null,null,null,null,null,null,null,7,"土"]